bitfinex-derivatives/quotes_ETHF0:USTF0_20241005
["timestamp","ask_amount","ask_price","bid_price","bid_amount"]
[1728126003124,2.36979844,2419.1,2419.0,1.49]
[1728126003723,2.62213458,2419.1,2419.0,1.49]
[1728126003920,2.08025043,2419.1,2419.0,1.49]
[1728126004116,1.0035,2419.1,2419.0,1.49]
[1728126004317,3.69843987,2419.1,2419.0,2.5949]
[1728126004526,1.07630529,2419.1,2419.0,7.01786]
[1728126004720,3.2078,2419.2,2419.1,0.28934]
[1728126004920,3.2078,2419.2,2419.1,2.78244]
[1728126005620,3.2078,2419.2,2419.1,2.4931]
[1728126005822,3.2078,2419.2,2419.1,2.78244]
[1728126006022,2.18470529,2419.4,2419.1,2.78244]
[1728126006224,2.18470529,2419.4,2419.3,1.49]
[1728126010230,1.1084,2419.4,2419.3,1.49]
[1728126010529,2.18470529,2419.4,2419.3,1.49]
[1728126011026,10.06843458,2419.4,2419.1,1.49]
[1728126011227,1.36493951,2419.2,2419.1,1.49]
[1728126013036,2.41763951,2419.2,2419.1,1.49]
[1728126013430,1.34203,2419.2,2419.1,1.49]
[1728126015032,1.0527,2419.2,2419.1,1.49]
[1728126019431,1.0527,2419.2,2418.8,2.1153]
[1728126019633,1.39005,2419.1,2419.0,1.49]
[1728126019839,4.59785,2419.1,2419.0,1.49]
[1728126022239,1.39005,2419.1,2419.0,1.49]
[1728126022944,1.1007,2419.1,2419.0,1.77936]
[1728126023240,3.2078,2419.2,2419.1,0.28934]
[1728126023433,3.2078,2419.2,2419.1,1.77934]
[1728126023939,3.11080951,2419.5,2419.1,1.49]
[1728126023940,2.08820951,2419.5,2419.1,1.49]
[1728126024244,3.2078,2419.6,2419.3,1.49]
[1728126024435,3.2078,2419.6,2419.5,1.7793]
[1728126025335,3.2078,2419.6,2419.5,5.9121]
[1728126025540,5.82470951,2420.1,2419.5,5.6228]
[1728126025743,4.28340951,2420.1,2420.0,1.49]
[1728126026045,3.2078,2420.1,2420.0,1.77924]
[1728126026335,3.2078,2420.4,2420.3,0.2892]
[1728126026540,3.2078,2420.4,2420.3,1.7792]
[1728126026733,3.2078,2420.4,2420.3,1.49]
[1728126026934,3.2078,2420.4,2420.3,1.7792]
[1728126027134,3.2078,2420.4,2420.3,1.49]
[1728126027334,3.2078,2420.4,2420.3,1.7792]
[1728126027533,3.2078,2420.4,2420.1,2.81912]
[1728126027534,3.497,2420.4,2420.1,2.81912]
[1728126027739,3.2078,2420.4,2420.0,1.49]
[1728126027939,3.2078,2420.1,2420.0,1.49]
[1728126028840,7.3398,2420.1,2419.8,1.0365]
[1728126029041,0.28924,2420.0,2419.7,2.81917]
[1728126029343,6.4806,2420.1,2419.7,1.49]
[1728126029344,7.55620951,2420.1,2419.7,1.49]
[1728126029742,0.28925,2419.9,2419.7,1.49]
[1728126029942,0.28924,2420.0,2419.7,1.49]
[1728126030136,0.28924,2420.0,2419.8,0.28926]
[1728126030540,4.42204,2420.0,2419.8,0.28926]
[1728126032145,4.42204,2420.0,2419.7,1.49]
[1728126032146,0.28925,2419.9,2419.7,1.77927]
[1728126032645,7.55620951,2420.1,2419.7,1.77927]
[1728126032646,0.28924,2420.0,2419.7,1.77927]
[1728126033548,0.28925,2419.9,2419.7,1.77927]
[1728126035942,3.49704,2420.0,2419.8,0.28926]
[1728126036248,3.49704,2420.0,2419.8,1.36976]
[1728126036547,7.62984,2420.0,2419.8,1.36976]
[1728126036951,4.57264951,2420.0,2419.8,1.36976]
[1728126041845,0.28925,2419.9,2419.8,1.0805]
[1728126043555,0.28928,2419.7,2419.5,2.88639]
[1728126043951,1.07488618,2419.8,2419.5,1.49]
[1728126044158,0.28928,2419.6,2419.5,1.49]
[1728126044456,0.2893,2419.5,2419.4,1.0162]
[1728126044651,1.3592,2419.5,2419.4,1.0162]
[1728126044848,1.3592,2419.5,2419.1,2.109]
[1728126044849,1.0699,2419.5,2419.1,2.109]
[1728126045050,0.28932,2419.3,2419.1,2.41784]
[1728126045258,0.28932,2419.3,2419.1,2.1285]
[1728126045451,0.28933,2419.2,2419.1,2.1285]
[1728126045752,0.28933,2419.2,2419.1,1.111]
[1728126046051,0.28933,2419.2,2419.0,1.49]
[1728126046251,3.17918618,2419.3,2419.0,2.601]
[1728126046453,0.28933,2419.2,2419.0,2.89035]
[1728126046761,0.28933,2419.2,2419.0,2.89036]
[1728126050160,0.28933,2419.2,2419.0,1.111]
[1728126050460,0.28934,2419.2,2419.0,2.601]
[1728126050758,0.28934,2419.1,2419.0,2.601]
[1728126051057,3.17918618,2419.3,2419.0,2.601]
[1728126051357,0.28934,2419.2,2419.0,2.89035]
[1728126056465,0.28934,2419.1,2419.0,2.601]
[1728126057064,0.28934,2419.2,2419.0,1.40036]
[1728126057852,0.28934,2419.1,2419.0,1.111]
[1728126059467,1.07488618,2419.2,2419.0,1.111]
[1728126059768,1.36422618,2419.2,2419.0,1.40035]
[1728126060758,0.28934,2419.2,2419.0,1.40035]
[1728126063163,6.38698618,2419.3,2419.0,1.111]
[1728126063466,0.28933,2419.2,2419.0,1.111]
[1728126063972,0.28933,2419.2,2419.0,1.40035]
[1728126067473,0.28933,2419.2,2419.0,1.111]
[1728126067972,0.28933,2419.2,2419.0,1.40036]
[1728126071372,0.28933,2419.2,2419.0,1.111]
[1728126072472,0.28934,2419.1,2419.0,1.111]
[1728126073467,0.28936,2419.0,2418.9,2.1315]
[1728126073675,1.30866,2419.0,2418.9,2.1315]
[1728126075867,1.30866,2419.0,2418.9,1.1039]
[1728126076171,0.28937,2418.9,2418.8,1.0851]
[1728126076371,1.3643359,2418.9,2418.8,1.0851]
[1728126076782,2.4641359,2418.9,2418.8,1.0851]
[1728126078275,0.28939,2418.7,2418.6,2.1322]
[1728126078475,0.28939,2418.7,2418.6,3.1866]
[1728126078673,0.28939,2418.7,2418.6,2.0944]
[1728126079671,0.28943,2418.5,2418.3,4.98723]
[1728126079874,0.28942,2418.5,2418.3,6.04163]
[1728126080179,0.28942,2418.5,2418.3,4.55164]
[1728126080376,0.28942,2418.5,2418.3,6.04164]
[1728126081077,4.1352,2418.5,2418.3,3.2078]
[1728126081271,6.69993866,2418.4,2418.1,1.1131]
[1728126081579,6.69993866,2418.4,2418.0,1.4901]
[1728126081580,1.36418866,2418.3,2418.0,0.70337]
[1728126081772,2.08143866,2418.3,2418.1,1.77946]
[1728126082076,2.08143866,2418.3,2418.1,2.79716]
[1728126082280,2.08143866,2418.3,2418.2,1.1131]
[1728126082481,1.0067,2418.3,2418.2,1.40255]
[1728126082874,5.60245866,2418.5,2418.2,1.40255]
[1728126083079,6.60915866,2418.5,2418.3,1.0388]
[1728126083281,5.53442,2418.5,2418.3,1.0388]
[1728126083682,0.28943,2418.4,2418.3,1.0388]
[1728126084587,0.28943,2418.4,2418.2,1.1131]
[1728126085379,6.31888016,2418.5,2418.2,1.1131]
[1728126085583,0.28944,2418.3,2418.1,2.5077]
[1728126085774,1.0843,2418.2,2418.1,1.49]
[1728126085978,2.1671,2418.2,2418.0,3.20737]
[1728126086781,1.0828,2418.2,2418.1,1.77946]
[1728126086993,1.0828,2418.2,2418.1,2.84516]
[1728126087591,0.096,2418.7,2418.6,0.2894]
[1728126087885,1.36324016,2419.0,2418.7,0.28939]
[1728126088191,1.36324016,2419.0,2418.8,3.6686]
[1728126089391,0.28936,2419.0,2418.8,3.6686]
[1728126089984,4.58145,2419.1,2418.8,3.6686]
[1728126090286,4.58145,2419.1,2419.0,1.49]
[1728126090287,4.57168513,2419.1,2419.0,1.49]
[1728126090590,4.57199487,2419.1,2419.0,1.49]
[1728126096696,3.49715,2419.1,2419.0,1.49]
[1728126097497,3.49715,2419.1,2418.8,2.1786]
[1728126097498,0.28937,2419.0,2418.8,2.1786]
[1728126097687,0.28937,2419.0,2418.8,3.6686]
[1728126097999,0.28937,2419.0,2418.9,1.49]
[1728126101601,1.36444355,2419.0,2418.9,1.49]
[1728126102002,0.28937,2419.0,2418.9,1.49]
[1728126102603,1.36444355,2419.0,2418.9,1.49]
[1728126103605,0.28937,2419.0,2418.9,1.49]
[1728126104805,3.2078,2419.1,2418.9,1.49]
[1728126104806,4.57267619,2419.1,2418.9,1.49]
[1728126104994,4.28332619,2419.1,2418.9,1.49]
[1728126105199,0.28936,2419.0,2418.9,1.49]
[1728126105499,1.36488619,2419.0,2418.9,1.49]
[1728126106210,0.28936,2419.0,2418.9,1.49]
[1728126106400,1.36488619,2419.0,2418.9,1.49]
[1728126106912,1.07552619,2419.0,2418.9,1.49]
[1728126107211,4.28332619,2419.1,2419.0,0.28936]
[1728126107415,4.28332619,2419.1,2419.0,1.49]
[1728126107908,3.2078,2419.1,2419.0,1.49]
[1728126108115,1.07552619,2419.2,2419.0,1.77936]
[1728126108308,1.07552619,2419.2,2419.1,0.28934]
[1728126108608,6.74546239,2419.4,2419.1,5.1518]
[1728126108609,1.07552619,2419.4,2419.1,5.1518]
[1728126108813,1.07552619,2419.5,2419.3,0.28931]
[1728126109014,1.07552619,2419.5,2419.4,1.49]
[1728126109305,1.36482619,2419.5,2419.4,1.49]
[1728126109614,0.2893,2419.5,2419.4,1.49]
[1728126111907,1.36481619,2419.6,2419.4,1.49]
[1728126112104,12.17388929,2419.7,2419.4,1.49]
[1728126112105,0.2893,2419.5,2419.4,1.49]
[1728126118409,0.28929,2419.6,2419.4,5.6228]
[1728126118620,0.28929,2419.6,2419.5,1.49]
[1728126123015,7.79133738,2419.7,2419.5,1.49]
[1728126123205,6.71658,2419.7,2419.5,1.49]
[1728126123407,6.71658,2419.7,2419.6,1.0965]
[1728126128317,7.79091393,2419.7,2419.6,1.0965]
[1728126128517,6.71658,2419.7,2419.6,1.0965]
[1728126128919,6.4273,2419.7,2419.6,1.0965]
[1728126129218,6.71657,2419.7,2419.6,3.1743]
[1728126131821,6.4273,2419.7,2419.6,3.1743]
[1728126132019,3.50877,2419.7,2419.6,3.1743]
[1728126132625,4.5838173,2419.7,2419.6,3.1743]
[1728126133125,4.2945473,2419.7,2419.6,3.1743]
[1728126133626,3.2195,2419.7,2419.6,3.1743]
[1728126133919,3.50877,2419.7,2419.6,3.1743]
[1728126134823,4.58544742,2419.7,2419.6,3.1743]
[1728126135728,4.29617742,2419.7,2419.6,3.1743]
[1728126135920,1.07667742,2419.7,2419.6,3.1743]
[1728126136116,1.61501613,2419.8,2419.6,3.1743]
[1728126136117,1.07667742,2419.8,2419.6,3.1743]
[1728126136315,5.84201613,2419.9,2419.7,1.49]
[1728126136316,2.38512742,2419.9,2419.7,1.49]
[1728126137220,4.57372742,2419.9,2419.7,1.49]
[1728126137422,0.28925,2419.9,2419.7,1.49]
[1728126139024,1.0192,2420.1,2419.7,1.49]
[1728126139220,1.30842,2420.1,2420.0,1.49]
[1728126139626,2.92332991,2420.1,2420.0,1.49]
[1728126141826,2.38488947,2420.1,2420.0,1.49]
[1728126142327,2.92332991,2420.1,2420.0,1.49]
[1728126142628,2.38477974,2420.1,2420.0,1.49]
[1728126146433,4.51622,2420.1,2420.0,1.49]
[1728126146636,6.13112991,2420.1,2420.0,1.49]
[1728126149328,2.92332991,2420.1,2420.0,1.49]
[1728126149537,6.13112991,2420.1,2420.0,1.49]
[1728126150943,2.92332991,2420.1,2420.0,1.49]
[1728126152037,1.30842,2420.1,2420.0,1.49]
[1728126153035,1.61648727,2420.1,2420.0,1.49]
[1728126153233,1.07775458,2420.1,2420.0,1.49]
[1728126153537,1.07775458,2420.1,2420.0,3.5898]
[1728126156437,4.56447458,2420.2,2420.0,3.5898]
[1728126156936,1.07775458,2420.1,2420.0,3.5898]
[1728126157536,5.10320727,2420.2,2420.0,3.5898]
[1728126157537,4.56447458,2420.2,2420.0,3.5898]
[1728126157934,1.07775458,2420.1,2420.0,3.5898]
[1728126162634,1.07775458,2420.1,2420.0,2.0998]
[1728126162839,1.07775458,2420.1,2420.0,3.5898]
[1728126163743,1.07775458,2420.1,2420.0,3.87904]
[1728126165342,4.27525458,2420.2,2420.0,3.87904]
[1728126165540,4.27525458,2420.2,2420.0,2.0998]
[1728126165743,4.27525458,2420.2,2420.1,1.49]
[1728126166242,4.27525458,2420.2,2420.1,1.77922]
[1728126166544,4.27525458,2420.2,2420.1,1.49]
[1728126167343,1.07775458,2420.2,2420.1,1.77922]
[1728126167737,1.07775458,2420.2,2420.1,1.49]
[1728126168239,1.07775458,2420.2,2420.1,1.77922]
[1728126169246,1.07775458,2420.2,2420.1,5.91122]
[1728126169642,1.07775458,2420.2,2420.1,1.77922]
[1728126176451,1.61648727,2420.2,2420.1,1.49]
[1728126176652,1.61648727,2420.2,2420.1,1.77922]
[1728126188868,2.66188727,2420.2,2420.1,1.77922]
[1728126189173,1.0454,2420.2,2420.1,1.77922]
[1728126193764,3.19861321,2420.2,2420.1,1.77922]
[1728126194070,1.0454,2420.2,2420.1,1.77922]
[1728126194576,3.19861321,2420.2,2420.1,1.77922]
[1728126194771,2.15321321,2420.3,2420.2,0.28921]
[1728126194973,2.15321321,2420.3,2420.2,1.77921]
[1728126196474,6.93251651,2420.4,2420.2,1.77921]
[1728126196670,3.72471651,2420.4,2420.2,1.77921]
[1728126196870,6.93251651,2420.4,2420.2,1.77921]
[1728126197478,6.93251651,2420.4,2420.3,0.2892]
[1728126197676,4.241,2420.4,2420.3,0.2892]
[1728126198673,4.241,2420.4,2420.3,1.3702155]
[1728126198972,2.16054741,2420.4,2420.3,1.3702155]
[1728126199182,2.16054741,2420.4,2420.3,1.51573465]
[1728126199381,2.16054741,2420.4,2420.3,2.59998522]
[1728126199576,2.16054741,2420.5,2420.3,2.59998522]
[1728126199770,2.16054741,2420.5,2420.4,1.77919]
[1728126200377,2.16025207,2420.5,2420.4,1.77919]
[1728126201279,2.16025207,2420.5,2420.4,2.86344057]
[1728126201779,4.30625207,2420.6,2420.5,0.28918]
[1728126201980,1.62028756,2420.6,2420.5,6.44136485]
[1728126202178,2.69151651,2420.9,2420.5,15.83002898]
[1728126202478,3.2078,2421.0,2420.9,0.28913]
[1728126202684,3.1599,2421.1,2420.9,1.77913]
[1728126204375,1.07871423,2421.0,2420.9,1.77913]
[1728126205585,1.07871423,2421.1,2420.9,1.49]
[1728126205787,2.78751651,2421.5,2420.9,1.49]
[1728126205788,1.07871423,2421.2,2420.9,1.49]
[1728126205974,1.07871423,2421.2,2421.1,1.77911]
[1728126206375,1.07871423,2421.3,2421.1,1.77911]
[1728126206576,1.07871423,2421.3,2421.2,1.49]
[1728126207386,4.51628423,2421.4,2421.2,1.49]
[1728126207884,4.22721423,2421.4,2421.2,1.77909]
[1728126208084,4.22721423,2421.4,2421.2,1.49]
[1728126208285,4.22721423,2421.4,2421.2,1.77909]
[1728126208488,3.1485,2421.4,2421.2,1.77909]
[1728126208987,1.0083,2421.4,2421.3,0.28908]
[1728126209190,1.0083,2421.4,2421.3,2.38298]
[1728126209395,6.43231423,2421.6,2421.3,6.2235]
[1728126209688,6.4271,2421.6,2421.5,1.49]
[1728126211182,3.2193,2421.6,2421.5,1.49]
[1728126212086,0.28906,2421.5,2421.4,1.49]
[1728126214584,3.49686,2421.5,2421.4,1.49]
[1728126215781,4.57197392,2421.5,2421.4,1.49]
[1728126216684,4.28291392,2421.5,2421.4,1.49]
[1728126217287,3.2078,2421.5,2421.4,1.49]
[1728126218590,3.2078,2421.5,2421.4,2.5198]
[1728126218989,3.2078,2421.5,2421.4,2.80887]
[1728126219494,3.2078,2421.5,2421.4,6.93847]
[1728126219692,3.2078,2421.5,2421.4,2.80887]
[1728126222694,3.2078,2421.5,2421.4,2.5198]
[1728126223003,3.2078,2421.5,2421.4,1.49]
[1728126223401,3.2078,2421.5,2421.4,1.77907]
[1728126223903,1.0735,2421.6,2421.4,1.77907]
[1728126228407,1.0735,2421.6,2421.5,0.28906]
[1728126228601,1.0735,2421.6,2421.4,1.49]
[1728126228802,1.0735,2421.6,2421.5,0.28906]
[1728126230112,1.0735,2421.6,2421.2,2.0001]
[1728126230412,1.36255,2421.6,2421.5,1.49]
[1728126234408,2.43766392,2421.6,2421.5,1.49]
[1728126234610,2.43766392,2421.6,2421.0,2.94708748]
[1728126234611,6.27821392,2421.6,2421.0,2.0633]
[1728126234906,6.27821392,2421.6,2421.3,1.49]
[1728126234907,3.49687,2421.4,2421.3,1.49]
[1728126235305,5.58407,2421.4,2421.3,1.49]
[1728126237106,2.37627,2421.4,2421.3,1.49]
[1728126237608,5.58407,2421.4,2421.3,1.49]
[1728126238907,2.37627,2421.4,2421.3,1.49]
[1728126239107,5.58407,2421.4,2421.3,1.49]
[1728126241019,2.37627,2421.4,2421.3,1.49]
[1728126242914,1.07511392,2421.5,2421.3,1.49]
[1728126242915,3.2078,2421.5,2421.3,1.49]
[1728126243115,3.2078,2421.5,2421.4,2.1426]
[1728126243313,3.2078,2421.5,2421.4,2.43167]
[1728126245412,3.2078,2421.5,2421.4,12.56127]
[1728126246013,3.2078,2421.5,2421.4,6.56127]
[1728126246214,1.07511392,2421.6,2421.5,0.28906]
[1728126246415,1.07511392,2421.6,2421.5,5.90866]
[1728126246615,1.07511392,2421.6,2421.5,6.92436]
[1728126247322,1.07511392,2421.6,2421.5,2.5057]
[1728126247525,5.67293183,2421.7,2421.5,2.5057]
[1728126247824,5.67293183,2421.7,2421.6,1.49]
[1728126249928,8.88073183,2421.7,2421.6,1.49]
[1728126250424,8.88073183,2421.7,2421.6,1.77905]
[1728126250425,8.59169183,2421.7,2421.6,1.77905]
[1728126250626,8.88072183,2421.7,2421.6,1.49]
[1728126251723,8.88072183,2421.7,2421.6,1.77905]
[1728126252332,5.67292183,2421.7,2421.6,1.77905]
[1728126253337,8.59169183,2421.7,2421.6,1.77905]
[1728126254829,5.38389183,2421.7,2421.6,1.77905]
[1728126255029,8.59169183,2421.7,2421.6,1.77905]
[1728126255226,8.88072183,2421.7,2421.6,1.49]
[1728126255834,8.88072183,2421.7,2421.6,1.77905]
[1728126256036,8.88072183,2421.7,2421.6,1.49]
[1728126256541,6.4429,2421.7,2421.6,1.49]
[1728126256730,6.73193,2421.7,2421.6,1.49]
[1728126257029,0.28905,2421.6,2421.4,1.49]
[1728126257230,0.28906,2421.5,2421.4,1.49]
[1728126257438,2.98907095,2421.5,2421.4,1.49]
[1728126258338,0.28906,2421.5,2421.4,1.49]
[1728126258638,2.98907095,2421.5,2421.4,1.49]
[1728126261131,7.11867095,2421.5,2421.4,1.49]
[1728126263735,10.32647095,2421.5,2421.4,1.49]
[1728126265438,7.11867095,2421.5,2421.4,1.49]
[1728126265641,10.32647095,2421.5,2421.4,1.49]
[1728126267241,7.11867095,2421.5,2421.4,1.49]
[1728126267442,10.32647095,2421.5,2421.4,1.49]
[1728126272242,7.11867095,2421.5,2421.4,1.49]
[1728126273335,10.32647095,2421.5,2421.4,1.49]
[1728126273538,6.19687095,2421.5,2421.4,1.49]
[1728126273738,5.90781095,2421.5,2421.4,2.4453]
[1728126273940,5.36708695,2421.5,2421.4,2.73437]
[1728126274140,4.82729846,2421.5,2421.4,2.73437]
[1728126274354,4.28751201,2421.5,2421.4,13.9475917]
[1728126274561,3.2078,2421.5,2421.4,15.7310019]
[1728126274843,3.2078,2421.5,2421.4,8.1071706]
[1728126275050,3.2078,2421.5,2421.4,14.1071706]
[1728126275239,3.2078,2421.5,2421.4,8.1071706]
[1728126275442,3.2078,2421.5,2421.4,15.73078656]
[1728126276744,3.2078,2421.5,2421.4,9.73044272]
[1728126276942,4.28751201,2421.7,2421.6,0.28905]
[1728126277244,4.28751201,2421.7,2421.6,1.77905]
[1728126278950,4.28708225,2421.7,2421.6,1.77905]
[1728126279146,4.82729846,2421.7,2421.6,1.77905]
[1728126280252,3.2078,2421.7,2421.6,1.77905]
[1728126280452,4.82729846,2421.7,2421.6,1.77905]
[1728126284651,1.07907485,2421.7,2421.6,1.77905]
[1728126285063,1.61949846,2421.7,2421.6,1.77905]
[1728126285861,1.07905497,2421.7,2421.6,1.77905]
[1728126290054,1.90852846,2421.8,2421.6,1.49]
[1728126290258,1.07889702,2421.7,2421.6,1.77905]
[1728126302468,1.36792702,2421.7,2421.6,1.49]
[1728126302771,0.28907,2421.4,2421.3,1.49]
[1728126302960,1.07850484,2421.4,2421.1,4.29008842]
[1728126303162,0.28909,2421.2,2421.1,3.2078]
[1728126303358,1.96570484,2421.3,2421.1,3.2078]
[1728126303359,2.25479484,2421.3,2421.1,4.6978]
[1728126303563,2.25479484,2421.3,2421.1,4.98691]
[1728126303564,1.8127,2421.2,2421.1,4.98691]
[1728126304670,1.8127,2421.2,2421.1,1.77911]
[1728126307577,1.96570484,2421.3,2421.1,1.49]
[1728126307767,1.61775726,2421.4,2421.2,4.1304]
[1728126307768,1.07850484,2421.4,2421.2,4.1304]
[1728126307968,1.07850484,2421.5,2421.4,0.28907]
[1728126308270,1.61775726,2421.6,2421.5,0.28906]
[1728126308271,1.07850484,2421.6,2421.5,0.28906]
[1728126308476,1.07850484,2421.6,2421.5,1.77906]
[1728126313577,1.61775726,2421.6,2421.5,1.77906]
[1728126313971,1.07902024,2421.6,2421.5,1.77906]
[1728126314171,2.57525726,2421.7,2421.5,1.77906]
[1728126314374,1.61775726,2421.6,2421.5,1.77906]
[1728126318176,1.90680726,2421.6,2421.4,2.29364842]
[1728126318388,1.61775726,2421.5,2421.4,1.49]
[1728126318688,2.59085726,2421.5,2421.4,1.49]
[1728126319975,2.59085726,2421.5,2421.4,1.77907]
[1728126320895,2.59085726,2421.5,2421.4,2.86135842]
[1728126321295,2.59085726,2421.5,2421.4,1.77907]
[1728126321490,2.59085726,2421.5,2421.4,2.86135842]
[1728126321891,2.59085726,2421.5,2421.4,1.77907]
[1728126322298,2.59085726,2421.5,2421.4,2.86135842]
[1728126322496,2.59085726,2421.5,2421.4,1.77907]
[1728126324996,2.59085726,2421.5,2421.4,2.86135842]
[1728126325197,2.59085726,2421.5,2421.4,1.77907]
[1728126325499,2.59085726,2421.5,2421.4,2.86135842]
[1728126327204,2.59085726,2421.5,2421.4,1.77907]
[1728126327397,2.59085726,2421.5,2421.4,2.86135842]
[1728126332106,2.59085726,2421.5,2421.4,2.57228842]
[1728126332309,2.59085726,2421.5,2421.4,2.86135842]
[1728126333006,2.59085726,2421.5,2421.4,1.49]
[1728126333306,2.59085726,2421.5,2421.4,1.77907]
[1728126333508,2.87991726,2421.5,2421.4,1.49]
[1728126333807,2.59085726,2421.5,2421.4,1.49]
[1728126334199,2.59085726,2421.5,2421.4,1.77907]
[1728126336906,2.59085726,2421.5,2421.4,1.49]
[1728126337810,1.26216,2421.5,2421.4,1.49]
[1728126338007,1.26216,2421.5,2421.2,1.62361596]
[1728126338008,7.25970968,2421.5,2421.2,1.08228842]
[1728126338202,2.15700968,2421.3,2421.1,1.08228842]
[1728126338403,0.28911,2421.1,2421.0,6.76298842]
[1728126338605,1.90898442,2421.1,2421.0,6.76298842]
[1728126339002,1.90898442,2421.1,2421.0,3.55518842]
[1728126339003,2.57207442,2421.1,2421.0,3.55518842]
[1728126339210,2.57207442,2421.1,2421.0,3.84430842]
[1728126339405,2.57207442,2421.1,2421.0,2.76202]
[1728126339811,1.24131,2421.1,2420.9,1.37140842]
[1728126340011,2.19141,2421.1,2421.0,1.49]
[1728126340211,1.9023,2421.1,2421.0,1.49]
[1728126340413,3.52175315,2421.1,2421.0,1.49]
[1728126340616,3.52175315,2421.1,2421.0,1.77912]
[1728126342018,3.81086315,2421.1,2421.0,1.49]
[1728126342217,1.9023,2421.1,2421.0,1.77912]
[1728126342418,2.19141,2421.1,2421.0,1.49]
[1728126342720,4.34841968,2421.1,2421.0,1.49]
[1728126342920,4.05930968,2421.1,2421.0,1.49]
[1728126343423,1.9023,2421.1,2421.0,1.49]
[1728126343813,1.9023,2421.1,2421.0,1.77912]
[1728126344219,3.52092641,2421.1,2421.0,1.77912]
[1728126344526,3.52069633,2421.1,2421.0,1.77912]
[1728126344719,3.52071692,2421.1,2421.0,1.77912]
[1728126345517,3.52071692,2421.1,2421.0,1.49]
[1728126348122,3.52071692,2421.1,2421.0,1.77912]
[1728126351821,3.80982692,2421.1,2421.0,1.49]
[1728126355316,3.52071692,2421.1,2421.0,1.49]
[1728126355518,2.9803713,2421.1,2421.0,1.77912]
[1728126355719,3.2694813,2421.1,2421.0,1.49]
[1728126355922,3.26947611,2421.1,2421.0,1.49]
[1728126356123,3.26947611,2421.1,2421.0,1.77912]
[1728126356722,2.98036611,2421.1,2421.0,1.77912]
[1728126361337,2.98036611,2421.1,2421.0,1.49]
[1728126361530,3.26947611,2421.1,2421.0,1.49]
[1728126361727,2.19141,2421.1,2421.0,1.49]
[1728126361932,3.80982692,2421.1,2421.0,1.49]
[1728126362133,3.26950204,2421.1,2421.0,1.49]
[1728126362431,3.80982692,2421.1,2421.0,1.49]
[1728126363336,3.26952771,2421.1,2421.0,1.49]
[1728126364536,3.80982692,2421.1,2421.0,1.49]
[1728126365937,3.26965138,2421.1,2421.0,1.49]
[1728126366139,2.19141,2421.1,2421.0,1.49]
[1728126366835,3.80982692,2421.1,2421.0,1.49]
[1728126368235,2.19141,2421.1,2421.0,1.49]
[1728126368541,3.80982692,2421.1,2421.0,1.49]
[1728126371337,3.80982692,2421.1,2420.9,0.9829]
[1728126371338,3.52071692,2421.1,2420.9,0.9829]
[1728126371537,2.52821692,2421.0,2420.6,1.77916]
[1728126371743,2.52821692,2421.0,2420.7,0.9223]
[1728126371744,0.28914,2420.8,2420.7,0.9223]
[1728126371936,1.36788174,2420.8,2420.7,0.9223]
[1728126372136,1.07874174,2420.8,2420.7,0.9223]
[1728126372338,1.99944174,2420.8,2420.7,1.21145]
[1728126372537,1.07874174,2420.9,2420.8,0.28914]
[1728126372750,1.07874174,2421.0,2420.8,0.28914]
[1728126373240,1.07874174,2421.0,2420.7,2.4123]
[1728126373445,1.07874174,2421.1,2420.9,1.49]
[1728126373640,1.07874174,2421.1,2421.0,3.13672]
[1728126374052,1.07874174,2421.1,2421.0,2.8476]
[1728126374341,1.07874174,2421.1,2421.0,3.13672]
[1728126375945,1.07874174,2421.1,2421.0,2.8476]
[1728126376148,1.07953051,2421.1,2421.0,2.8476]
[1728126376351,1.61841692,2421.1,2421.0,2.8476]
[1728126376947,1.90752692,2421.1,2421.0,2.8476]
[1728126378448,0.28911,2421.1,2421.0,2.8476]
[1728126380342,2.44611968,2421.1,2421.0,2.8476]
[1728126383452,0.28911,2421.1,2421.0,2.8476]
[1728126384347,2.98912095,2421.1,2421.0,2.8476]
[1728126386645,2.98912095,2421.1,2421.0,3.92988842]
[1728126386860,2.98912095,2421.1,2421.0,2.8476]
[1728126391143,2.98912095,2421.1,2421.0,3.92988842]
[1728126391656,2.98912095,2421.1,2421.0,2.8476]
[1728126391846,2.98912095,2421.1,2421.0,3.92988842]
[1728126392243,2.98912095,2421.1,2421.0,2.8476]
[1728126392658,0.28911,2421.1,2421.0,3.92988842]
[1728126392851,2.98912095,2421.1,2421.0,3.92988842]
[1728126393250,2.98912095,2421.1,2421.0,2.8476]
[1728126393553,2.98912095,2421.1,2421.0,3.92988842]
[1728126394055,2.98912095,2421.1,2421.0,2.8476]
[1728126394253,2.98912095,2421.1,2421.0,3.92988842]
[1728126395656,2.98912095,2421.1,2421.0,2.8476]
[1728126396251,2.98912095,2421.1,2421.0,3.92988842]
[1728126396855,2.98912095,2421.1,2421.0,2.8476]
[1728126397257,2.98912095,2421.1,2421.0,3.92988842]
[1728126399367,2.98912095,2421.1,2421.0,2.8476]
[1728126399549,2.98912095,2421.1,2421.0,3.92988842]
[1728126399756,2.98912095,2421.1,2421.0,2.01298842]
[1728126399951,0.28912,2421.0,2420.9,1.08228842]
[1728126400254,0.28912,2421.0,2420.8,1.08228842]
[1728126400255,0.28913,2420.9,2420.8,1.08228842]
[1728126400456,0.28914,2420.8,2420.7,1.49178842]
[1728126400652,2.45192556,2420.8,2420.7,1.49178842]
[1728126404164,2.45192556,2420.8,2420.7,1.78093842]
[1728126406357,2.16278556,2420.8,2420.7,0.69865]
[1728126406563,2.16278556,2420.8,2420.7,1.78093842]
[1728126407261,2.16278556,2420.8,2420.7,0.69865]
[1728126408569,2.45192556,2420.9,2420.7,0.69865]
[1728126408766,2.45192556,2420.9,2420.7,1.78093842]